Cogmind - Beta 15 @@@ ROGUE MODE // 2025.06.28 @ 16:01:07 Player: mm79 Result: Self-destructed Performance ------------- Evolutions (2) 1000 Regions Visited (8) 1600 Robots Destroyed (58) 290 Value Destroyed (1675) 1675 Prototype IDs (39) 780 Alien Tech Used (0) 0 Bonus (500) 500 TOTAL SCORE: 5845 Bonus ------- Entered Garrisons 200 Aligned with FarCom 300 Cogmind --------- Core Integrity 310/550 Matter 275/300 Energy 34/275 System Corruption 0% Temperature Cool (0) Movement Rolling (230) Ox10 Location -8/Garrison Parts ------- > --- POWER (1) -------- Deuterium Engine > --- PROPULSION (3) --- Wheel > --- UTILITY (4) ------ Huge Storage Unit > --- WEAPON (3) ------- Heavy Ion Cannon Heavy Ion Cannon > --- INVENTORY (25) --- Deuterium Engine Fission Core Light Fission Core Heat Sink Improved Heat Sink Compact Battery (200) Structural Scanner Improved Medium Armor Plating Improved Medium Armor Plating Hardlight Generator Improved Recalibrator Particle Gun AWS/Gauss Plasma Cutter Katana Blade Trap Blade Trap Blade Trap Blade Trap Peak State ------------ > --- POWER ------------ Deuterium Engine > --- PROPULSION ------- Wheel Wheel Wheel > --- UTILITY ---------- Improved Heat Sink Huge Storage Unit Hardened Light Armor Plating Hardlight Generator > --- WEAPON ----------- Pulse Rifle Beam Cannon Heavy Ion Cannon > --- INVENTORY -------- Deuterium Engine Deuterium Engine Fission Core Fission Core Light Fission Core Heat Sink Improved Heat Sink Compact Battery Structural Scanner Improved Medium Armor Plating Improved Medium Armor Plating Hardlight Generator Improved Recalibrator Heavy Ion Cannon Heavy Ion Cannon Heavy Ion Cannon AWS/Gauss Grenade Launcher Plasma Cutter Katana Blade Trap Blade Trap Blade Trap Blade Trap [Rating: 31] Favorites ----------- Power Deuterium Engine Engine Deuterium Engine Propulsion Wheel Leg Titanium Leg Wheel Wheel Utility Huge Storage Unit Device Improved Heat Sink Storage Huge Storage Unit Hackware Hacking Suite Protection Hardened Light Armor Plating Weapon Beam Cannon Energy Gun Small Laser Energy Cannon Beam Cannon Ballistic Gun Assault Rifle Launcher Grenade Launcher Special Weapon Plasma Cutter Special Melee Weapon Datajack Build | -11 -10 -10 -9 -9 -9 -8 -8 -8 ------- Run | Yrd Mat Min Mat Min Exi Min Mat Gar Slots Evolved 4 | . . . 2 . . . 2 . Power . | . . . . . . . . . Propulsion 1 | . . . 1 . . . . . Utility 2 | . . . 1 . . . 1 . Weapon 1 | . . . . . . . 1 . Parts Attached 48 | 7 5 4 8 . 1 2 3 18 Power 4 | 1 . . 1 . . . . 2 Engine 4 | 1 . . 1 . . . . 2 Core . | . . . . . . . . . Reactor . | . . . . . . . . . Propulsion 12 | 2 . 2 3 . . 1 . 4 Treads . | . . . . . . . . . Leg 2 | . . . 1 . . . . 1 Wheel 10 | 2 . 2 2 . . 1 . 3 Hover . | . . . . . . . . . Flight . | . . . . . . . . . Utility 12 | 2 3 . 1 . . 1 2 3 Device 6 | 1 . . 1 . . 1 1 2 Storage 3 | 1 2 . . . . . . . Processor . | . . . . . . . . . Hackware 1 | . 1 . . . . . . . Protection 2 | . . . . . . . 1 1 Artifact . | . . . . . . . . . Weapon 20 | 2 2 2 3 . 1 . 1 9 Energy Gun 8 | 2 1 1 . . . . . 4 Energy Cannon 8 | . . . 3 . . . 1 4 Ballistic Gun 1 | . 1 . . . . . . . Ballistic Cannon . | . . . . . . . . . Launcher 1 | . . 1 . . . . . . Special Weapon 1 | . . . . . . . . 1 Impact Weapon . | . . . . . . . . . Slashing Weapon . | . . . . . . . . . Piercing Weapon . | . . . . . . . . . Special Melee Weapon 1 | . . . . . 1 . . . Unidentified Prototypes . | . . . . . . . . . Parts Lost 28 | . 1 3 2 . . 2 . 20 Power 2 | . . . . . . . . 2 Propulsion 10 | . . 2 1 . . 1 . 6 Utility 6 | . . . . . . 1 . 5 Weapon 10 | . 1 1 1 . . . . 7 Highest Loss Streak 8 | . 1 3 1 . . 2 . 8 To Critical Strikes . | . . . . . . . . . Average Backups 19 | 4 16 22 23 22 20 19 18 19 Power 4 | . 3 3 2 3 5 6 6 5 Propulsion . | 2 1 . . . . . 2 . Utility 8 | . 6 10 13 12 8 6 5 6 Weapon 5 | . 5 8 5 5 5 5 4 5 Tool/Special . | . . . . . . . . . Unused Backups 45 | 2 8 . 7 2 4 2 . 20 Power 12 | . 5 . 3 . . . . 4 Propulsion 4 | 2 2 . . . . . . . Utility 22 | . . . 4 2 3 2 . 11 Weapon 7 | . 1 . . . 1 . . 5 Tool/Special . | . . . . . . . . . Average Slot Usage (%) 97 | . 100 96 98 100 99 91 99 93 Engine 11 | . 14 14 11 11 11 11 9 8 Wheel 28 | . 28 26 31 33 33 25 27 22 Device 9 | . 1 . 11 11 11 10 14 17 Storage 11 | . 14 14 11 11 11 11 9 9 Hackware 9 | . 12 14 11 11 11 11 9 1 Protection 1 | . . . . . . . 3 6 Energy Gun 8 | . 27 26 . . . . . 10 Energy Cannon 15 | . . . 21 22 16 22 27 15 Peak Build Rating 31 | 8 12 13 21 20 23 23 26 31 Average Rating 19 | 5 10 12 19 20 21 21 25 26 On Entrance 16 | . 8 12 13 20 20 23 22 26 Naked Turns . | . . . . . . . . . Heaviest Build 114 | 13 87 87 96 96 96 96 104 114 Greatest Support 34 | 20 20 22 34 34 34 32 32 32 Greatest Overweight (x) 10 | 1 4 3 4 2 2 4 3 10 Average Overweight (x) 2 | . 2 3 2 2 2 3 3 3 Largest Inventory Capacity 25 | 8 25 25 25 25 25 25 25 25 Average Capacity 23 | 7 21 25 25 25 25 25 25 25 Most Carried 25 | 8 25 25 25 25 25 25 25 25 Average Carried 22 | 4 16 22 23 24 24 24 23 24 Final Capacity 25 | 8 25 25 25 25 25 25 25 25 Final Carried 25 | 8 25 22 24 25 25 25 25 20 Class Distribution -------------------- 74% | Mutant 9% | Scavenger-Skirmisher 8% | Scavenger-Tank 5% | Scavenger-Mutant Dominant Class ---------------- Mutant | -10/Materials Scavenger-Mutant | -10/Mines Mutant | -9/Materials Mutant | -9/Mines Mutant | -9/Exiles Mutant | -8/Mines Scavenger-Skirmisher | -8/Materials Scavenger-Tank | -8/Garrison Resources | -11 -10 -10 -9 -9 -9 -8 -8 -8 ----------- Run | Yrd Mat Min Mat Min Exi Min Mat Gar Matter Collected 681 | 255 71 19 106 . . 60 . 170 Remotely . | . . . . . . . . . Salvage Created 2022 | 80 336 19 563 116 . 81 . 827 Parts 103 | 13 14 2 27 5 . 9 . 33 Haulers Intercepted 2 | . 1 . 1 . . . . . Recyclers Shooed 1 | . 1 . . . . . . . Parts Field Recycled . | . . . . . . . . . Retrieved Matter . | . . . . . . . . . Parts Self-Destructed . | . . . . . . . . . Prevented . | . . . . . . . . . Kills | -11 -10 -10 -9 -9 -9 -8 -8 -8 ------- Run | Yrd Mat Min Mat Min Exi Min Mat Gar Combat Hostiles Destroyed 46 | . 7 3 10 2 . 6 . 18 Guns 13 | . 7 . . . . . . 6 Cannons 26 | . . . 9 2 . 4 . 11 AOE 6 | . . 3 . . . 2 . 1 Classes Destroyed 11 | 1 4 . 1 2 . . . 3 Worker 2 | . . . . 1 . 1 . . Tunneler 5 | 4 . . . . . 1 . . Hauler 2 | . 1 . 1 . . . . . Mechanic 2 | . . . . . . . . 2 Operator 1 | . 1 . . . . . . . Swarmer 12 | . 1 3 . . . 6 . 2 Cutter 1 | . . . . . . . . 1 Grunt 19 | . 6 . 3 1 . . . 9 Brawler 1 | . . . . 1 . . . . Duelist 1 | . . . . . . . . 1 Sentry 12 | . . . 7 . . . . 5 Best Kill Streak 6 | 4 3 3 3 3 . 6 . 4 Combat Bots Only 6 | . 2 3 3 2 . 6 . 3 Max Kills in Single Turn 3 | 1 1 3 1 1 . 2 . 1 Gunslinging . | . . . . . . . . . Exploded 3 | . . 3 . . . 2 . 1 Melee . | . . . . . . . . . Uniques/NPCs Destroyed . | . . . . . . . . . Combat | -11 -10 -10 -9 -9 -9 -8 -8 -8 -------- Run | Yrd Mat Min Mat Min Exi Min Mat Gar Hostile Shots Fired 279 | . 54 9 46 8 . 28 . 134 Missed 86 | . 18 3 14 4 . 9 . 38 Hits 193 | . 36 6 32 4 . 19 . 96 Melee 5 | . . . . . . . . 5 Projectile 188 | . 36 6 32 4 . 19 . 91 AOE 2 | . . . . . . . . 2 Critical Strikes 12 | . . . 3 . . . . 9 Damage Taken 2517 | . 391 86 462 44 . 167 . 1367 Core 430 | . 80 18 63 . . 29 . 240 Absorbed by Shields 140 | . . . . . . . . 140 Core Remaining (%) 79 | 100 . 60 . . . 77 . . Volleys Fired 157 | 11 34 2 28 6 . 17 . 59 Largest 3 | 2 2 2 2 2 . 2 . 3 Hottest 188 | 80 80 80 120 120 . 120 . 188 Shots Fired 337 | 22 68 3 56 12 . 33 . 143 Gun 157 | 22 68 2 . . . . . 65 Cannon 175 | . . . 56 12 . 32 . 75 Launcher 4 | . . 1 . . . 1 . 2 Special 1 | . . . . . . . . 1 Kinetic 2 | . 2 . . . . . . . Thermal 331 | 22 66 2 56 12 . 32 . 141 Explosive 4 | . . 1 . . . 1 . 2 Electromagnetic . | . . . . . . . . . Robot Hit Streak 22 | 3 9 1 22 7 . 8 . 20 Robot Miss Streak 5 | 5 3 1 2 2 . 4 . 4 Penetration Max . | . . . . . . . . . Secondary Targets 1 | . 1 . . . . . . . Max Gunslinging Chain 1 | . 1 . . . . . . . Shots Hit Robots 216 | 8 48 1 42 9 4 17 . 87 Core Hits 95 | 4 19 2 19 3 . 7 . 41 Critical Kills 1 | . . . 1 . . . . . Critical Parts Destroyed . | . . . . . . . . . Critical Strikes 7 | . . . 1 . . . . 6 Burn 6 | . . . . . . . . 6 Meltdown 1 | . . . 1 . . . . . Melee Attacks 4 | . . . . . 4 . . . Impact . | . . . . . . . . . Slashing . | . . . . . . . . . Piercing . | . . . . . . . . . Sneak Attacks 4 | . . . . . 4 . . . Combat Hostiles . | . . . . . . . . . Follow-up Attacks . | . . . . . . . . . Damage Inflicted 3964 | 99 551 121 783 182 . 457 . 1771 Guns 1340 | 99 551 13 . . . . . 677 Cannons 2217 | . . . 783 182 . 329 . 923 Explosions 407 | . . 108 . . . 128 . 171 Melee . | . . . . . . . . . Ramming . | . . . . . . . . . Kinetic 25 | . 25 . . . . . . . Thermal 3532 | 99 526 13 783 182 . 329 . 1600 Explosive 407 | . . 108 . . . 128 . 171 Electromagnetic . | . . . . . . . . . Impact . | . . . . . . . . . Slashing . | . . . . . . . . . Piercing . | . . . . . . . . . Highest Corruption . | . . . . . . . . . Average Corruption . | . . . . . . . . . Corruption Purged . | . . . . . . . . . Corruption Blocked . | . . . . . . . . . Overload Shots . | . . . . . . . . . Overflow Damage 61 | . . 20 . . . 14 . 27 Projectiles 41 | . . . . . . 14 . 27 Explosions 20 | . . 20 . . . . . . Melee . | . . . . . . . . . Knockbacks . | . . . . . . . . . Impact . | . . . . . . . . . Kinetic . | . . . . . . . . . Secondary . | . . . . . . . . . Self-Inflicted Damage 84 | . . 38 . . . 22 . 24 Shots 3 | . . 1 . . . 1 . 1 Rammed . | . . . . . . . . . Targets Rammed . | . . . . . . . . . Kicked . | . . . . . . . . . Crushed . | . . . . . . . . . Highest Temperature 414 | 33 60 3 30 6 . 276 . 414 Average Temperature 81 | 16 17 2 13 3 . 140 . 133 Received Heat Transfer 876 | . 171 . 192 24 . . . 489 Effects 1 | . . . . . . . . 1 Damage (minor) 1 | . . . . . . . . 1 Siege Activations . | . . . . . . . . . Martial Activations . | . . . . . . . . . Shielding Activations . | . . . . . . . . . Robots Disrupted . | . . . . . . . . . Combat Hostiles . | . . . . . . . . . Robots Corrupted . | . . . . . . . . . Combat Hostiles . | . . . . . . . . . Parts Fried . | . . . . . . . . . Impact Corruptions . | . . . . . . . . . Robots Melted 1 | . . . 1 . . . . . Combat Hostiles 1 | . . . 1 . . . . . Parts Melted 23 | 1 . . 7 1 . 1 . 13 Heat Transferred 7814 | 225 1200 25 1591 370 . 666 . 3737 Parts Sabotaged . | . . . . . . . . . Parts Stolen . | . . . . . . . . . Parts Stripped . | . . . . . . . . . Power Chain Reactions . | . . . . . . . . . Alert | -11 -10 -10 -9 -9 -9 -8 -8 -8 ------- Run | Yrd Mat Min Mat Min Exi Min Mat Gar Maximum Alert Level 1 | . . . . . . . . 1 Low Security (%) 99 | 100 100 100 100 100 . 100 100 99 Level 1 . | . . . . . . . . . Level 2 . | . . . . . . . . . Level 3 . | . . . . . . . . . Level 4 . | . . . . . . . . . Level 5 . | . . . . . . . . . High Security . | . . . . . . . . . Max Security . | . . . . . . . . . Peak Influence 209 | 15 67 83 104 47 . 116 . 209 Initial 40 | . . . 20 40 . . . 1 Average 32 | 2 14 66 25 8 . 31 . 94 Influence Increases 1323 | 20 231 83 367 55 . 156 3 408 Destroy 0b10 Robot/C 920 | . 140 60 200 40 . 120 . 360 Destroy 0b10 Robot/NC 60 | 20 10 . 5 5 . 10 . 10 Destroy Leader 164 | . 32 10 82 10 . 20 . 10 Successful Hack 84 | . 49 . 20 . . . 3 12 Destroy Structure 20 | . . 13 . . . 6 . 1 Lose Combat Pursuer 75 | . . . 60 . . . . 15 Influence Decreases 1134 | 20 231 30 316 159 . 156 . 222 Entered New Map 99 | . . . 33 64 . . . 2 Time Decay 775 | 20 221 30 263 95 . 146 . . Lost Part 240 | . 10 . 20 . . 10 . 200 Lost Ally 20 | . . . . . . . . 20 Squads Dispatched 1 | . 1 . . . . . . . Investigation 1 | . 1 . . . . . . . Extermination . | . . . . . . . . . Reinforcement . | . . . . . . . . . Assault . | . . . . . . . . . Garrison . | . . . . . . . . . Intercept . | . . . . . . . . . Searches Triggered . | . . . . . . . . . Construction Impeded . | . . . . . . . . . Haulers Reinforced . | . . . . . . . . . Active Scanning Responses . | . . . . . . . . . Cargo Convoy Interrupts . | . . . . . . . . . Stealth | -11 -10 -10 -9 -9 -9 -8 -8 -8 --------- Run | Yrd Mat Min Mat Min Exi Min Mat Gar Distress Signals 4 | . 2 . 1 . . . . 1 Communications Jammed . | . . . . . . . . . Distress Signals . | . . . . . . . . . Times Spotted 83 | . 23 3 22 2 . 6 . 27 Peak Tracking Total 6 | . 5 3 5 2 . 3 . 6 Tactical Retreats 2 | . . . 1 . . . . 1 Traps | -11 -10 -10 -9 -9 -9 -8 -8 -8 ------- Run | Yrd Mat Min Mat Min Exi Min Mat Gar Traps Triggered 5 | . 1 . . . . . . 4 Indirectly . | . . . . . . . . . Trap Hack Attempts . | . . . . . . . . . Triggered . | . . . . . . . . . Disarmed . | . . . . . . . . . Reprogrammed . | . . . . . . . . . Reused . | . . . . . . . . . Traps Extracted . | . . . . . . . . . Installed . | . . . . . . . . . Triggered . | . . . . . . . . . Most Traps Carried 4 | . . . . 4 4 4 4 4 Machines | -11 -10 -10 -9 -9 -9 -8 -8 -8 ---------- Run | Yrd Mat Min Mat Min Exi Min Mat Gar Machines Disabled 2 | . . . . . . . . 2 Max in Single Turn 1 | . . . . . . . . 1 Machines Repaired . | . . . . . . . . . Machines Dismantled . | . . . . . . . . . Machines Sabotaged . | . . . . . . . . . Overloaded Fab Kills . | . . . . . . . . . Hacking | -11 -10 -10 -9 -9 -9 -8 -8 -8 --------- Run | Yrd Mat Min Mat Min Exi Min Mat Gar Machines Accessed 23 | . 10 . 7 . 2 . 2 2 Terminals 18 | . 8 . 7 . . . 1 2 Fabricators . | . . . . . . . . . Repair Stations . | . . . . . . . . . Recycling Units 2 | . 2 . . . . . . . Scanalyzers . | . . . . . . . . . Garrison Access 1 | . . . . . . . 1 . Total Hacks 71 | . 33 . 28 . 2 . 5 3 Successful 38 | . 21 . 13 . 2 . 1 1 Failed 33 | . 12 . 15 . . . 4 2 Catastrophic 5 | . 3 . 1 . . . . 1 Database Lockouts . | . . . . . . . . . Manual 46 | . 23 . 20 . 1 . 2 . Terminals 61 | . 28 . 28 . . . 2 3 Fabricators . | . . . . . . . . . Repair Stations . | . . . . . . . . . Recycling Units 5 | . 5 . . . . . . . Scanalyzers . | . . . . . . . . . Garrison Access 3 | . . . . . . . 3 . Terminal Hacks 19 | . 9 . 7 . 2 . . 1 Record 1 | . . . . . 1 . . . Robot Analysis 6 | . 3 . 3 . . . . . Prototype ID Bank 1 | . . . 1 . . . . . Branch Access Points 2 | . 1 . 1 . . . . . Terminal Index 2 | . 1 . 1 . . . . . Locate Traps 3 | . 2 . 1 . . . . . Hauler Manifests 1 | . 1 . . . . . . . Registered Components 1 | . 1 . . . . . . . Patrol Navigation 1 | . . . . . . . . 1 Proto ID Catalog 1 | . . . . . 1 . . . Fabricator Hacks . | . . . . . . . . . Repair Station Hacks . | . . . . . . . . . Recycling Unit Hacks 4 | . 4 . . . . . . . Report Inventory 2 | . 2 . . . . . . . Retrieve Components 2 | . 2 . . . . . . . Scanalyzer . | . . . . . . . . . Garrison Access Hacks 1 | . . . . . . . 1 . Unlock Access 1 | . . . . . . . 1 . Unauthorized Hacks 14 | . 8 . 6 . . . . . Terminals 13 | . 7 . 6 . . . . . Botnet 2 | . 1 . 1 . . . . . Disrupt 1 | . 1 . . . . . . . Skim 10 | . 5 . 5 . . . . . Fabricators . | . . . . . . . . . Repair Stations . | . . . . . . . . . Recycling Units 1 | . 1 . . . . . . . Reject 1 | . 1 . . . . . . . Scanalyzers . | . . . . . . . . . Garrison Access . | . . . . . . . . . Data Cores Recovered 1 | . 1 . . . . . . . Used . | . . . . . . . . . Hacking Detections 20 | . 9 . 7 . . . 2 2 Full Trace Events . | . . . . . . . . . Feedback Events . | . . . . . . . . . Feedback Blocked . | . . . . . . . . . Robot Schematics Acquired . | . . . . . . . . . Robots Built . | . . . . . . . . . Authchips . | . . . . . . . . . Time . | . . . . . . . . . Total Robot Build Rating . | . . . . . . . . . Part Schematics Acquired . | . . . . . . . . . Parts Built . | . . . . . . . . . Authchips . | . . . . . . . . . Time . | . . . . . . . . . Total Part Build Rating . | . . . . . . . . . Parts Repaired . | . . . . . . . . . Time . | . . . . . . . . . Parts Recycled . | . . . . . . . . . Recycled Matter . | . . . . . . . . . Retrieved Matter . | . . . . . . . . . Retrieved Components 15 | . 15 . . . . . . . Parts Scanalyzed . | . . . . . . . . . Part Schematics Acquired . | . . . . . . . . . Parts Damaged . | . . . . . . . . . Bothacking | -11 -10 -10 -9 -9 -9 -8 -8 -8 ------------ Run | Yrd Mat Min Mat Min Exi Min Mat Gar Used RIF Installer . | . . . . . . . . . Robots Hacked 4 | . . . . . 4 . . . Non-combat 3 | . . . . . 3 . . . Combat 1 | . . . . . 1 . . . Robot Hacks Applied 4 | . . . . . 4 . . . parse_system 4 | . . . . . 4 . . . Relay Couplers Released . | . . . . . . . . . Fabnet Peak Effective % . | . . . . . . . . . Robots Rewired 1 | . . . . . . . . 1 Allies Hacked . | . . . . . . . . . Hacks Repelled . | . . . . . . . . . Allies | -11 -10 -10 -9 -9 -9 -8 -8 -8 -------- Run | Yrd Mat Min Mat Min Exi Min Mat Gar Total Allies 1 | . . . . . . . . 1 Largest Group 1 | . . . . . . . . 1 Highest-Rated Group 24 | . . . . . . . . 24 Highest-Rated Ally 24 | . . . . . . . . 24 Total Orders . | . . . . . . . . . Ally Attacks 2 | . . . . . . . . 2 Total Damage 19 | . . . . . . . . 19 Kills . | . . . . . . . . . Allies Corrupted . | . . . . . . . . . Allies Melted . | . . . . . . . . . Intel | -11 -10 -10 -9 -9 -9 -8 -8 -8 ------- Run | Yrd Mat Min Mat Min Exi Min Mat Gar Active Infowar (turns) 90 | 24 66 . . . . . . . Seismic 90 | 24 66 . . . . . . . Robot Analysis Total 6 | . 3 . 3 . . . . . Derelict Logs Recovered 1 | . . . . 1 . . . . Drone Launches . | . . . . . . . . . Drone Recoveries . | . . . . . . . . . Exploration | -11 -10 -10 -9 -9 -9 -8 -8 -8 ------------- Run | Yrd Mat Min Mat Min Exi Min Mat Gar Turns Passed 4421 | 114 952 63 838 644 339 498 222 751 Spaces Moved 2884 | 59 628 42 522 531 280 320 158 344 Core 4 | 4 . . . . . . . . Treads . | . . . . . . . . . Legs . | . . . . . . . . . Wheels 2880 | 55 628 42 522 531 280 320 158 344 Hover . | . . . . . . . . . Flight . | . . . . . . . . . Fastest Speed 50 | 50 80 130 116 116 116 113 128 125 Average Speed 121 | 79 117 130 119 116 116 131 128 135 Slowest Speed 230 | 95 140 130 145 116 116 145 128 230 Overloaded Moves . | . . . . . . . . . Propulsion Burnouts . | . . . . . . . . . Robots Hopped . | . . . . . . . . . Potential Cave-ins . | . . . . . . . . . Cave-ins Triggered . | . . . . . . . . . Exploration Rate (%) 52 | 4 99 13 63 93 65 75 19 45 Regions Visited 8 Branch Regions 4 Pre-discovered Areas 3 | . 1 1 . . 1 . . . Known Exits Taken 4 | . 1 1 1 . . . 1 . Unknown Exits Taken 4 | 1 . . . 1 1 1 . . Scrap Searched 2 | . . . . 1 . 1 . . Spaces Dug 20 | . . 13 . . . 6 . 1 Terrain Destroyed 20 | . . 13 . . . 6 . 1 Melee . | . . . . . . . . . Projectile . | . . . . . . . . . AOE 20 | . . 13 . . . 6 . 1 Terrain Rammed . | . . . . . . . . . Walls Destroyed . | . . . . . . . . . Machines Disabled . | . . . . . . . . . Actions | -11 -10 -10 -9 -9 -9 -8 -8 -8 --------- Run | Yrd Mat Min Mat Min Exi Min Mat Gar Total 3508 | 101 777 47 686 549 294 364 178 512 Wait 273 | 13 72 . 102 4 . 19 13 50 Move 2877 | 58 627 41 521 530 279 319 158 344 Hop . | . . . . . . . . . Pick Up 83 | 10 27 . 15 5 4 3 3 16 Fast Attach 15 | 7 . . 3 . . 1 . 4 Attach 30 | . 3 3 5 . 1 1 3 14 Detach 2 | . 1 . . . . . . 1 Swap 9 | . 2 1 . . 1 2 . 3 Drop 46 | 2 11 . 12 4 5 2 1 9 Fire 157 | 11 34 2 28 6 . 17 . 59 Melee 4 | . . . . . 4 . . . Ram . | . . . . . . . . . Kick . | . . . . . . . . . Crush . | . . . . . . . . . Escape Stasis 8 | . . . . . . . . 8 Rewire 4 | . . . . . . . . 4 Trap . | . . . . . . . . . Miscellaneous . | . . . . . . . . . Route ------- -11/Scrapyard -10/Materials (discovered 6 exits: *Mat x3 / *Min x2 / [*Sub]) -10/Mines (discovered 2 exits: *Mat / [*Sub]) -9/Materials (discovered 4 exits: *Mat / *Min x2 / *Sto) -9/Mines (discovered 4 exits: *Mat x2 / *Exi / [*Zio]) -9/Exiles -8/Mines -8/Materials (discovered 2 exits: [*Fac] / Gar) -8/Garrison History --------- Turn | Location | Event 21 | -11/Scrapyard | Discovered new exit (range 15) 115 | -11/Scrapyard | Entered Materials 267 | -10/Materials | Identified exit to Mines 317 | -10/Materials | Build established: Mutant 511 | -10/Materials | Discovered new exit (range 15) 597 | -10/Materials | Discovered new exit (range 13) 708 | -10/Materials | Discovered new exit (range 5) 735 | -10/Materials | Learned Storage trap positions 797 | -10/Materials | Identified exit to Materials 851 | -10/Materials | Learned Storage trap positions 894 | -10/Materials | Learned Storage emergency access door positions 961 | -10/Materials | Learned 4 Subcaves zone layouts 984 | -10/Materials | Learned location of Subcaves (-10) 1018 | -10/Materials | Learned 2 Storage zone layouts 1062 | -10/Materials | Learned location of 2 exits from Subcaves 1067 | -10/Materials | Entered Mines 1102 | -10/Mines | Lost 3 parts (2n1w) 1106 | -10/Mines | Discovered new exit (range 8) 1123 | -10/Mines | Learned location of Storage (-9) 1130 | -10/Mines | Entered Materials 1130 | -9/Materials | Evolved 2 slots: Propulsion x1, Utility x1 1481 | -9/Materials | Discovered new exit (range 6) 1626 | -9/Materials | Discovered new exit (range 5) 1715 | -9/Materials | Discovered new exit (range 14) 1818 | -9/Materials | Identified exit to Mines 1818 | -9/Materials | Identified exit to Storage 1903 | -9/Materials | Learned Storage trap positions 1968 | -9/Materials | Entered Mines 1998 | -9/Mines | A Derelict revealed a hidden shortcut to a safe place 2025 | -9/Mines | Met a Derelict bent on vengeance 2075 | -9/Mines | Discovered new exit (range 8) 2183 | -9/Mines | Found a hidden stash of uninstalled traps 2416 | -9/Mines | Learned Materials terminal intel 2509 | -9/Mines | Discovered new exit (range 10) 2608 | -9/Mines | Deemed a non-threat by the Exiles lab entrance 2608 | -9/Mines | Discovered new exit (range 5) 2612 | -9/Mines | Entered Exiles 2647 | -9/Exiles | Met 8R-AWN 2669 | -9/Exiles | Met EX-HEX 2713 | -9/Exiles | Met EX-DEC 2754 | -9/Exiles | Met EX-BIN 2776 | -9/Exiles | Aligned with FarCom system 2777 | -9/Exiles | Given EX-Vault access code 2835 | -9/Exiles | Opened EX-Vault 2845 | -9/Exiles | Found AWS/Gauss 2869 | -9/Exiles | Warned to stay clear of 0b10 Research branches 2906 | -9/Exiles | Learned location of Zion (-7) 2942 | -9/Exiles | Discovered new exit (range 10) 2951 | -9/Exiles | Left Exiles lab with AWS/Gauss 2951 | -9/Exiles | Entered Mines 3422 | -8/Mines | Discovered new exit (range 13) 3449 | -8/Mines | Entered Materials 3449 | -8/Materials | Evolved 2 slots: Utility x1, Weapon x1 3450 | -8/Materials | Loaded intel: 12 terminal locations 3601 | -8/Materials | Discovered new exit (range 16) 3671 | -8/Materials | Identified exit to Garrison 3671 | -8/Materials | Entered Garrison 3748 | -8/Garrison | Build established: Scavenger-Skirmisher 3765 | -8/Garrison | Triggered checkpoint 3832 | -8/Garrison | Lost 4 parts (1p1u2w) 3899 | -8/Garrison | Triggered checkpoint 4029 | -8/Garrison | Lost 3 parts (2n1w) 4323 | -8/Garrison | Triggered checkpoint 4361 | -8/Garrison | Lost 3 parts (1n1u1w) 4422 | -8/Garrison | Self-destructed Last Messages --------------- 04370_ Field strength at 30. 04371_ Field strength at 20. 04372_ Field strength at 10. 04373_ Stasis field depleted. 04392_ Dropped Rigged Fission Core. 04393_ Knocked back. 04395_ Rigged Fission Core explodes. 04395_ C-17 Slicer destroyed. 04397_ Pulse Rifle severed. 04400_ Hrd. Light Armor Plating destroyed. 04402_ Beam Cannon destroyed. 04403_ Imp. Heat Sink destroyed. 04406_ Wheel destroyed. 04408_ Hvy. Ion Cannon destroyed. 04412_ Hvy. Ion Cannon severed. 04412_ C-17 Slicer destroyed. 04413_ Deuterium Engine destroyed. 04415_ S-10 Pest destroyed. 04419_ Aluminum Leg destroyed. 04421_ Imp. Heat Sink destroyed. Map ----- +----------------------------------------------------+ | ?????????????????????????????????????????????????? | | ?????????????????????????????????????????????????? | | ?????????????????????????????????????????????????? | | ?????????????????????????????????????????????????? | | ?????????????????????????????????????????????????? | | ?????????????????????????????????????????????????? | | ?????????????????????????????????????????????????? | | ?????????????????????????????????????????????????? | | ????????????????????????Y????????????????????????? | | ????????????????????????Y????????????????????????? | | ?????????????????????????????????????????????????? | | ?????????????????????????????????????????????????? | | ?????????????????????????????????????g???????????? | | ?????????????????????????????????????????????????? | | ?????????????????????????????????????????????????? | | ?????????????????????????????????????????????????? | | ????????????????????????????????????#????????????? | | ???????????????????????########### #####????????? | | ???????????????????????# ???????? | | ???????????????????????# ???????? | | ???????????????????????# g ???????? | | ???????????????????????# =s# ######??????????????? | | ???????????????????????# *=% #???????????????????? | | ???????????????????????#*/%; #???????????????????? | | ???????????????????????#%%=; #???????????????????? | | ???????????????????????# @]#?????????????????????? | | ???????????????????????# #?????????????????????? | | ??????????????????s????# #?????????????????????? | | ????????????######""""##s #?????????????????????? | | ??????????? s s #?????????????????????? | | ??????????? #?????????????????????? | | ??????????? #?????????????????????? | | ????????????# ## ## #?????????????????????? | | ????????????# ## ##^ ^###???????????????????? | | ????????????" #???????????????????? | | ???????????g" #???????????????????? | | ???????????g" #???????????????????? | | ????????????" % #???????????????????? | | ????????????# ## ## ###???????????????????? | | ??########### ## ## % ###########??????????? | | ??# % #??????????? | | ??# = = #??????????? | | ??# ######## %=% #??????????? | | ??# #??????## ## ############# #??????????? | | ??# #???????# ## #???????????# #??????????# | | ??# #???????# #######???????????# #######????# | | ??# #???????# #?????????????????# # # #????# | | ??# #???????# #?????????????????# ### #????# | | ??# #???????# #?????????????????# # ## ###### | | ### ######### #?????????????????# ! %* | +----------------------------------------------------+ Best States ------------- Heat Dissipation 59 Energy Generation 14 Energy Capacity 275 Matter Stores 300 Matter Capacity 300 Sight Range 16 Terrain Scan Density 10 Armor Coverage 150 Resistance: TH 10 Evasion (%) 44 Offensive Hacking 10 Item Schematics ----------------- None Robot Schematics ------------------ None Fabricated ------------ Nothing Repaired ---------- Nothing Alien Tech Used ----------------- None Achievements -------------- None Challenges ------------ None Game ------ Seed FissionBehemothLance Manual? 0 Play Time 00:50:07 Cumulative 58.2 hours Start 2025.06.28 @ 10:22:12 End 2025.06.28 @ 16:01:07 Sessions 3 Manual Loads 0 Difficulty Rogue Special Mode None Game No. 114 Rogue 114 Adventurer 0 Explorer 0 Win Type - Total 1 Types 1/0/0/0/0/0/0/0/0/0 Lore% 14 Gallery% 33 Achievement% 31 Wizard Run 0 Options --------- Layout 1 ASCII 0 Keyboard 0 Movement Mouse Keybinds 0 Fullscreen 1 Font 20/SmallcapsGlow Map View 54x42 Zoom Use 0% Tactical HUD 1 Map Filters NONE Filters NONE Steam 0 RUN: 8f609188-b4c9-4f22-b1ad-69bfede0ccf4